fUSD/lending_fUSD_20260510
["ID","MTS","AMOUNT","RATE_DAILY","PERIOD"]
[421976128,1778396668000,-1561.0,0.00041918,120]
[421976126,1778396668000,-250.0,0.00041912,114]
[421976127,1778396668000,-250.0,0.00041917,115]
[421976134,1778396668000,-250.0,0.00041941,117]
[421976151,1778396669000,-1092.93390361,0.00041964,120]
[421976149,1778396669000,-1092.93390361,0.00041964,120]
[421976150,1778396669000,-1092.93390361,0.00041964,120]
[421976148,1778396669000,-1092.93390361,0.00041964,120]
[421976145,1778396669000,-1092.93390361,0.00041964,120]
[421976147,1778396669000,-1092.93390361,0.00041964,120]
[421976153,1778396669000,-1092.93390361,0.00041964,120]
[421976144,1778396669000,-1092.93390361,0.00041964,120]
[421976142,1778396669000,-250.0,0.00041962,119]
[421976146,1778396669000,-1092.93390361,0.00041964,120]
[421976152,1778396669000,-1092.93390361,0.00041964,120]
[421976157,1778396669000,-250.0,0.00041968,119]
[421976156,1778396669000,-250.0,0.00041965,119]
[421976155,1778396669000,-1092.9339036,0.00041964,120]
[421976158,1778396669000,-250.0,0.0004197,120]
[421976159,1778396669000,-250.0,0.00041973,120]
[421976160,1778396669000,-260.9,0.00041973,120]
[421976161,1778396669000,-1734.62772924,0.00041997,30]
[421976143,1778396669000,-1092.93390361,0.00041964,120]
[421976162,1778396669000,-507.97021341,0.00041999,120]
[421976164,1778396669000,-1000000.0,0.00042,120]
[421976165,1778396669000,-1000000.0,0.00042,120]
[421976166,1778396669000,-94020.02278981,0.00042,120]
[421976154,1778396669000,-1092.93390361,0.00041964,120]
[421976163,1778396669000,-202247.21756467,0.00042,120]
[421976167,1778396699000,-163.84,0.00010903,2]
[421976171,1778396869000,-150.0,0.00011038,2]
[421976197,1778396870000,-1534.982155,0.0004168,120]
[421976172,1778396870000,-165.35,0.00026575,30]
[421976173,1778396870000,-160.36396542,0.00030846,30]
[421976174,1778396870000,-151.0,0.00030846,30]
[421976176,1778396870000,-151.0,0.00032846,30]
[421976175,1778396870000,-151.0,0.00031846,30]
[421976178,1778396870000,-151.0,0.00034846,30]
[421976179,1778396870000,-151.0,0.00035846,30]
[421976180,1778396870000,-151.0,0.00036846,30]
[421976181,1778396870000,-182.55779898,0.000372,120]
[421976182,1778396870000,-182.55779898,0.000372,120]
[421976184,1778396870000,-1534.982155,0.00040384,30]
[421976177,1778396870000,-151.0,0.00033846,30]
[421976186,1778396870000,-1534.982155,0.00040384,30]
[421976183,1778396870000,-244.85091969,0.0003931,120]
[421976195,1778396870000,-150.0,0.00041652,120]
[421976196,1778396870000,-1534.982155,0.0004168,120]
[421976193,1778396870000,-547.0,0.00041096,30]
[421976192,1778396870000,-1255.61,0.0004075,120]
[421976194,1778396870000,-1280.73,0.0004125,120]
[421976190,1778396870000,-151.0,0.00040384,30]
[421976188,1778396870000,-204.376688,0.00040384,30]
[421976189,1778396870000,-151.0,0.00040384,30]
[421976187,1778396870000,-1534.982155,0.00040384,30]
[421976185,1778396870000,-1534.982155,0.00040384,30]
[421976191,1778396870000,-163.89,0.0004075,120]
[421976206,1778396871000,-159.0,0.00041691,120]
[421976209,1778396871000,-383230.15655679,0.00042,49]
[421976210,1778396871000,-905979.97721019,0.00042,120]
[421976208,1778396871000,-1306.33,0.0004175,120]
[421976207,1778396871000,-151.0,0.00041691,120]
[421976205,1778396871000,-151.0,0.00041691,120]
[421976199,1778396871000,-1534.982155,0.0004168,120]
[421976202,1778396871000,-1534.982155,0.00041691,120]
[421976203,1778396871000,-1534.982155,0.00041691,120]
[421976200,1778396871000,-151.0,0.0004168,120]
[421976201,1778396871000,-1534.982155,0.00041691,120]
[421976198,1778396871000,-1534.982155,0.0004168,120]
[421976204,1778396871000,-1534.982164,0.00041691,120]
[421976211,1778396871000,-1000000.0,0.00042,120]
[421976214,1778396871000,-1000000.0,0.00042,120]
[421976213,1778396871000,-1000000.0,0.00042,120]
[421976226,1778396871000,-1684555.46319295,0.00042,120]
[421976225,1778396871000,-2000000.0,0.00042,120]
[421976223,1778396871000,-1000000.0,0.00042,120]
[421976221,1778396871000,-1000000.0,0.00042,120]
[421976222,1778396871000,-1000000.0,0.00042,120]
[421976224,1778396871000,-1000000.0,0.00042,120]
[421976219,1778396871000,-1000000.0,0.00042,120]
[421976218,1778396871000,-1000000.0,0.00042,120]
[421976216,1778396871000,-1000000.0,0.00042,120]
[421976217,1778396871000,-1000000.0,0.00042,120]
[421976215,1778396871000,-1000000.0,0.00042,120]
[421976220,1778396871000,-1000000.0,0.00042,120]
[421976212,1778396871000,-1000000.0,0.00042,120]
[421976227,1778396872000,-150.0,0.00011344,2]
[421976228,1778396873000,-150.0,0.00011012,2]
[421976230,1778396884000,-150.0,0.000107,2]
[421976229,1778396884000,-150.0,0.000107,2]
[421976231,1778396885000,-150.0,0.000107,2]
[421976233,1778396885000,-150.0,0.000107,2]
[421976232,1778396885000,-150.0,0.00010699,2]
[421976235,1778396886000,-150.0,0.000107,2]
[421976234,1778396886000,-150.0,0.000107,2]
[421976237,1778396887000,-150.0,0.000107,2]
[421976236,1778396887000,-150.0,0.000107,2]
[421976241,1778396888000,-150.0,0.000107,2]
[421976240,1778396888000,-150.0,0.000107,2]
[421976239,1778396888000,-150.0,0.000107,2]
[421976238,1778396888000,-150.0,0.000107,2]
[421976244,1778396953000,-5000.01,0.000107,2]
[421976242,1778396953000,-300.0,0.00010699,2]
[421976243,1778396953000,-4700.01,0.000107,2]
[421976254,1778396954000,-500.0,0.00010699,2]
[421976252,1778396954000,-500.0,0.00010699,2]
[421976250,1778396954000,-500.0,0.00010699,2]
[421976251,1778396954000,-500.0,0.00010699,2]
[421976253,1778396954000,-500.0,0.00010699,2]
[421976248,1778396954000,-475.65073212,0.00010699,2]
[421976249,1778396954000,-500.0,0.00010699,2]
[421976245,1778396954000,-500.0,0.00010699,2]
[421976247,1778396954000,-500.0,0.00010699,2]
[421976255,1778396954000,-205.55952117,0.00010699,2]
[421976246,1778396954000,-318.79974671,0.00010699,2]
[421976256,1778396954000,-294.44047883,0.00010699,2]
[421976262,1778396954000,-500.0,0.00010699,2]
[421976265,1778396954000,-500.0,0.00010699,2]
[421976264,1778396954000,-500.0,0.00010699,2]
[421976266,1778396954000,-205.56952117,0.00010699,2]
[421976257,1778396954000,-500.0,0.00010699,2]
[421976260,1778396954000,-500.0,0.00010699,2]
[421976261,1778396954000,-500.0,0.00010699,2]
[421976259,1778396954000,-500.0,0.00010699,2]
[421976258,1778396954000,-500.0,0.00010699,2]
[421976263,1778396954000,-500.0,0.00010699,2]
[421976267,1778396955000,-294.43047883,0.00010699,2]
[421976268,1778396955000,-551.5011737,0.00010699,2]
[421976269,1778396955000,-500.0,0.00010699,2]
[421976270,1778396955000,-500.0,0.00010699,2]
[421976272,1778396955000,-500.0,0.00010699,2]
[421976271,1778396955000,-500.0,0.00010699,2]
[421976273,1778396955000,-500.0,0.00010699,2]
[421976276,1778396955000,-500.0,0.00010699,2]
[421976275,1778396955000,-500.0,0.00010699,2]
[421976277,1778396955000,-154.07834747,0.00010699,2]
[421976279,1778396955000,-500.0,0.00010699,2]
[421976280,1778396955000,-500.0,0.00010699,2]
[421976281,1778396955000,-3654.08834747,0.000107,2]
[421976274,1778396955000,-500.0,0.00010699,2]
[421976278,1778396955000,-345.92165253,0.00010699,2]
[421976282,1778396967000,-5000.01,0.000107,2]
[421976283,1778396985000,188.47409994,0.0001,30]
[421976284,1778397000000,-5000.01,0.000107,2]
[421976315,1778397235000,-5000.01,0.000107,2]
[421976320,1778397236000,171.0,0.00012,3]
[421976319,1778397236000,-5000.01,0.000107,2]
[421976318,1778397236000,-8600.01,0.000107,2]
[421976316,1778397236000,-200.0,0.00010596,2]
[421976317,1778397236000,-1200.0,0.00010699,2]
[421976338,1778397237000,-2473.84346165,0.00011099,2]
[421976341,1778397237000,-921.28,0.00011175,2]
[421976337,1778397237000,-4543.00167928,0.00011099,2]
[421976333,1778397237000,-1473.51582128,0.000109,2]
[421976332,1778397237000,-500.0,0.00010803,2]
[421976331,1778397237000,-2000.0,0.00010776,2]
[421976330,1778397237000,-304.35,0.00010752,2]
[421976335,1778397237000,-150.0,0.00010959,2]
[421976336,1778397237000,-434.53,0.00011012,2]
[421976329,1778397237000,-3811.6247179,0.000107,2]
[421976328,1778397237000,-344089.40102233,0.000107,2]
[421976327,1778397237000,-6846.18982166,0.000107,2]
[421976325,1778397237000,-3500.0,0.000107,2]
[421976326,1778397237000,-3312.61098426,0.000107,2]
[421976324,1778397237000,-0.0269704,0.000107,2]
[421976323,1778397237000,-380.52932165,0.000107,2]
[421976322,1778397237000,-27207.78442402,0.000107,2]
[421976321,1778397237000,-5000.01,0.000107,2]
[421976340,1778397237000,-4543.00167921,0.00011124,2]
[421976334,1778397237000,-921.28,0.00010903,2]
[421976339,1778397237000,-2473.84346164,0.00011124,2]
[421976347,1778397237000,-5000.0,0.00011472,2]
[421976343,1778397237000,-932.454,0.00011344,2]
[421976342,1778397237000,-4030.47,0.00011227,2]
[421976362,1778397237000,-3964.21238912,0.000116,2]
[421976361,1778397237000,-23485.60425598,0.000116,2]
[421976359,1778397237000,-10009.41269346,0.000116,2]
[421976358,1778397237000,-129184.52038625,0.000116,2]
[421976360,1778397237000,-299.54,0.000116,2]
[421976357,1778397237000,-4543.00167921,0.00011596,2]
[421976356,1778397237000,-2473.84346164,0.00011596,2]
[421976355,1778397237000,-1277009.6856,0.00011572,2]
[421976354,1778397237000,-238.20010764,0.00011532,2]
[421976352,1778397237000,-643.67811,0.000115,2]
[421976353,1778397237000,-494.70332766,0.00011532,2]
[421976351,1778397237000,-165.813,0.000115,2]
[421976363,1778397237000,-19004.68441498,0.000116,2]
[421976348,1778397237000,-6794.9409,0.00011472,2]
[421976349,1778397237000,-2500.0,0.00011472,2]
[421976346,1778397237000,-7539.8967,0.00011472,2]
[421976345,1778397237000,-1214.7319,0.00011471,2]
[421976344,1778397237000,-921.28,0.00011448,2]
[421976350,1778397237000,-1250.658,0.000115,2]
[421976365,1778397238000,-387704.80757961,0.000116,2]
[421976366,1778397238000,-57833.33136,0.000116,2]
[421976364,1778397238000,-1435.3354,0.000116,2]
[421976367,1778397238000,-2983.4383552,0.000116,2]
[421976371,1778397238000,-10000.01,0.000116,2]
[421976369,1778397238000,-300.0,0.00010699,2]
[421976370,1778397238000,-5000.01,0.000116,2]
[421976372,1778397238000,-10000.01,0.000116,2]
[421976368,1778397238000,-5000.01,0.000116,2]
[421976374,1778397239000,-10000.01,0.000116,2]
[421976375,1778397239000,161700.0,0.000106,2]
[421976373,1778397239000,-10000.01,0.000116,2]
[421976378,1778397239000,-9850.01,0.000106,2]
[421976377,1778397239000,-150.0,0.00010599,2]
[421976376,1778397239000,-10000.01,0.000106,2]
[421976382,1778397240000,-10000.01,0.000106,2]
[421976381,1778397240000,-10000.01,0.000106,2]
[421976380,1778397240000,-10000.01,0.000106,2]
[421976379,1778397240000,-10000.01,0.000106,2]
[421976383,1778397241000,-10000.01,0.000106,2]
[421976384,1778397242000,-10000.01,0.000106,2]
[421976385,1778397242000,-10000.01,0.000106,2]
[421976388,1778397242000,-9563.62457797,0.000106,2]
[421976387,1778397242000,-267.468,0.00010388,2]
[421976386,1778397242000,-168.91742203,0.00010388,2]
[421976389,1778397242000,-10000.01,0.000106,2]
[421976391,1778397306000,-500.0,0.00010599,2]
[421976395,1778397551000,-500.0,0.00010545,2]
[421976400,1778397616000,-500.0,0.00010545,2]
[421976399,1778397616000,-500.0,0.00010545,2]
[421976398,1778397616000,-500.0,0.00010545,2]
[421976397,1778397616000,-500.0,0.00010545,2]
[421976408,1778397617000,-258.64244839,0.00010598,2]
[421976406,1778397617000,-91.35755161,0.00010598,2]
[421976405,1778397617000,-279.49193139,0.00010598,2]
[421976404,1778397617000,-220.50806861,0.00010499,2]
[421976403,1778397617000,-500.0,0.00010598,2]
[421976402,1778397617000,-329.150517,0.00010598,2]
[421976401,1778397617000,-170.849483,0.00010545,2]
[421976407,1778397617000,-150.0,0.00010598,2]
[421976409,1778397618000,-41.35755161,0.00010598,2]
[421976410,1778397618000,-458.64244839,0.00010599,2]
[421976412,1778397618000,-458.64244839,0.00010599,2]
[421976413,1778397618000,-500.0,0.000105,2]
[421976411,1778397618000,-41.35755161,0.00010599,2]
[421976419,1778397619000,-500.0,0.000105,2]
[421976418,1778397619000,-500.0,0.000105,2]
[421976417,1778397619000,-500.0,0.000105,2]
[421976415,1778397619000,-3579.49193139,0.000105,2]
[421976416,1778397619000,-500.0,0.000105,2]
[421976414,1778397619000,-500.0,0.000105,2]
[421976430,1778397620000,-166.31,0.000339,30]
[421976429,1778397620000,-160.29,0.00033,120]
[421976428,1778397620000,-153.83185987,0.00032846,30]
[421976426,1778397620000,-884.0,0.00032196,30]
[421976427,1778397620000,-159.0169126,0.00032846,30]
[421976421,1778397620000,-500.0,0.000105,2]
[421976424,1778397620000,-155.0,0.00031846,30]
[421976422,1778397620000,-155.0,0.00030846,30]
[421976420,1778397620000,-500.0,0.000105,2]
[421976432,1778397620000,-195.9924394,0.00035,30]
[421976425,1778397620000,-151.0,0.00031846,30]
[421976431,1778397620000,-191.56,0.000339,30]
[421976423,1778397620000,-151.0,0.00030846,30]
[421976435,1778397620000,-191.56,0.000354,30]
[421976434,1778397620000,-267.469,0.00035291,41]
[421976445,1778397620000,-199.68,0.000399,90]
[421976443,1778397620000,-529.97347636,0.000395,30]
[421976440,1778397620000,-1444.0,0.00037753,120]
[421976444,1778397620000,-529.97347636,0.000395,30]
[421976442,1778397620000,-529.97347637,0.000395,30]
[421976439,1778397620000,-191.56,0.000369,30]
[421976438,1778397620000,-186.0,0.00036521,30]
[421976437,1778397620000,-186.0,0.00036,30]
[421976436,1778397620000,-780.0,0.00035616,120]
[421976433,1778397620000,-161.0,0.00035,120]
[421976441,1778397620000,-186.0,0.00038059,30]
[421976458,1778397621000,-150.0,0.00041652,120]
[421976461,1778397621000,-613.992862,0.00041656,120]
[421976460,1778397621000,-613.992862,0.00041656,120]
[421976459,1778397621000,-613.992862,0.00041656,120]
[421976456,1778397621000,-1000.0,0.00041177,120]
[421976457,1778397621000,-329.76,0.0004125,120]
[421976455,1778397621000,-500.0,0.00041177,120]
[421976449,1778397621000,-500.0,0.00040355,60]
[421976452,1778397621000,-150.0,0.00040822,60]
[421976453,1778397621000,-211.12867234,0.00040822,60]
[421976451,1778397621000,-323.29,0.0004075,120]
[421976448,1778397621000,-250.73,0.0004029,60]
[421976450,1778397621000,-1000.0,0.00040355,60]
[421976462,1778397621000,-613.992862,0.00041656,120]
[421976446,1778397621000,-190.0,0.00039962,90]
[421976454,1778397621000,-211.9,0.00041096,120]
[421976464,1778397621000,-151.0,0.00041656,120]
[421976447,1778397621000,-191.56,0.0004,30]
[421976465,1778397621000,-292.340021,0.00041656,120]
[421976463,1778397621000,-151.0,0.00041656,120]
[421976482,1778397621000,-151.0,0.00041692,120]
[421976480,1778397621000,-158.0,0.00041692,120]
[421976479,1778397621000,-155.0,0.00041692,120]
[421976478,1778397621000,-156.0,0.00041692,120]
[421976477,1778397621000,-164.0,0.00041692,120]
[421976474,1778397621000,-151.0,0.00041662,120]
[421976476,1778397621000,-250.0,0.00041691,30]
[421976481,1778397621000,-158.0,0.00041692,120]
[421976472,1778397621000,-151.0,0.00041662,120]
[421976473,1778397621000,-151.0,0.00041662,120]
[421976471,1778397621000,-151.0,0.00041662,120]
[421976470,1778397621000,-151.0,0.00041662,30]
[421976469,1778397621000,-151.0,0.00041662,30]
[421976468,1778397621000,-494.91240732,0.00041656,120]
[421976467,1778397621000,-1826.31086884,0.00041656,120]
[421976466,1778397621000,-151.0,0.00041656,120]
[421976475,1778397621000,-244.416902,0.0004169,65]
[421976495,1778397622000,-315444.53680705,0.00042,120]
[421976494,1778397622000,-1329.15299628,0.00041997,30]
[421976492,1778397622000,-613.992862,0.00041996,120]
[421976493,1778397622000,-613.992862,0.00041996,120]
[421976491,1778397622000,-613.992862,0.00041996,120]
[421976490,1778397622000,-613.992862,0.00041996,120]
[421976486,1778397622000,-1000.0,0.00041725,120]
[421976489,1778397622000,-237.454999,0.000419,70]
[421976487,1778397622000,-336.35,0.0004175,120]
[421976485,1778397622000,-500.0,0.00041725,120]
[421976484,1778397622000,-237.454999,0.000417,70]
[421976483,1778397622000,-473.0,0.00041694,120]
[421976497,1778397622000,-2000000.0,0.00042,120]
[421976488,1778397622000,-234.204999,0.000419,70]
[421976496,1778397622000,-2000000.0,0.00042,120]
[421976501,1778397622000,-2000000.0,0.00042,120]
[421976499,1778397622000,-2000000.0,0.00042,120]
[421976498,1778397622000,-2000000.0,0.00042,120]
[421976513,1778397622000,-500.0,0.000105,2]
[421976512,1778397622000,-282863.97605188,0.00042,120]
[421976511,1778397622000,-1000000.0,0.00042,120]
[421976510,1778397622000,-1000000.0,0.00042,120]
[421976508,1778397622000,-6558.0,0.00042,120]
[421976509,1778397622000,-3000.0,0.00042,120]
[421976505,1778397622000,-202.0,0.00042,50]
[421976504,1778397622000,-10003.0,0.00042,120]
[421976506,1778397622000,-2348135.82898195,0.00042,30]
[421976503,1778397622000,-2909.55775738,0.00042,120]
[421976502,1778397622000,-2000000.0,0.00042,120]
[421976500,1778397622000,-2000000.0,0.00042,120]
[421976507,1778397622000,-3300.0,0.00042,120]
[421976514,1778397623000,-500.0,0.000105,2]
[421976515,1778397623000,-500.0,0.000105,2]
[421976518,1778397623000,175.47,5.316e-05,2]
[421976517,1778397623000,-2170.849483,0.000105,2]
[421976516,1778397623000,-500.0,0.000105,2]
[421976519,1778397624000,45.03806861,5.595e-05,2]
[421976520,1778397624000,130.43193139,5.595e-05,2]
[421976521,1778397624000,175.47,5.875e-05,2]
[421976522,1778397624000,175.47,6.155e-05,2]
[421976524,1778397624000,175.47,6.715e-05,2]
[421976523,1778397624000,175.47,6.435e-05,2]
[421976525,1778397624000,175.47,6.994e-05,2]
[421976528,1778397624000,-1143.7674,0.000105,2]
[421976527,1778397624000,-714.14888561,0.000105,2]
[421976526,1778397624000,175.47,7.274e-05,2]
[421976530,1778397624000,175.47,7.834e-05,2]
[421976538,1778397624000,-175.47,0.00010072,2]
[421976539,1778397624000,-175.47,0.00010352,2]
[421976536,1778397624000,-175.47,9.512e-05,2]
[421976537,1778397624000,-175.47,9.792e-05,2]
[421976531,1778397624000,175.47,8.113e-05,2]
[421976535,1778397624000,-175.47,9.233e-05,2]
[421976532,1778397624000,175.47,8.393e-05,2]
[421976533,1778397624000,-175.47,8.673e-05,2]
[421976529,1778397624000,175.47,7.554e-05,2]
[421976534,1778397624000,-175.47,8.953e-05,2]
[421976540,1778397720000,-1200.0,0.00010499,2]
[421976541,1778397721000,-182.60906706,0.00010599,2]
[421976543,1778397880000,250.0,6.477e-05,2]
[421976545,1778397880000,-182.60906706,0.000105,2]
[421976544,1778397880000,-182.60906706,0.000105,2]
[421976554,1778397881000,-151.0,0.00041662,120]
[421976559,1778397881000,-717136.02394812,0.00042,120]
[421976558,1778397881000,-141615.0782784,0.00042,47]
[421976557,1778397881000,-804.837,0.00041726,30]
[421976556,1778397881000,-500.0,0.00041726,30]
[421976555,1778397881000,-151.0,0.00041662,120]
[421976552,1778397881000,-151.0,0.00041644,120]
[421976548,1778397881000,-180.22051008,0.000395,30]
[421976549,1778397881000,-180.22051006,0.000395,30]
[421976551,1778397881000,-159.89568,0.00041644,120]
[421976550,1778397881000,-503.53682658,0.00041095,120]
[421976547,1778397881000,-188.47409994,0.0003235,30]
[421976546,1778397881000,-182.60906706,0.000105,2]
[421976562,1778397881000,-1000000.0,0.00042,120]
[421976553,1778397881000,-240.287292,0.00041644,120]
[421976560,1778397881000,-1000000.0,0.00042,120]
[421976568,1778397881000,-15120.0,0.00042,120]
[421976563,1778397881000,-1000000.0,0.00042,120]
[421976578,1778397881000,-1000000.0,0.00042,120]
[421976577,1778397881000,-1000000.0,0.00042,120]
[421976576,1778397881000,-1000000.0,0.00042,120]
[421976575,1778397881000,-1000000.0,0.00042,120]
[421976574,1778397881000,-2500.0,0.00042,30]
[421976561,1778397881000,-1000000.0,0.00042,120]
[421976571,1778397881000,-10000.0,0.00042,120]
[421976572,1778397881000,-937.0,0.00042,120]
[421976570,1778397881000,-10150.0,0.00042,30]
[421976569,1778397881000,-17407.0,0.00042,120]
[421976567,1778397881000,-2606.0,0.00042,120]
[421976566,1778397881000,-10000.0,0.00042,120]
[421976565,1778397881000,-1000000.0,0.00042,120]
[421976564,1778397881000,-1000000.0,0.00042,120]
[421976573,1778397881000,-937.0,0.00042,120]
[421976583,1778397882000,-1000000.0,0.00042,120]
[421976580,1778397882000,-1000000.0,0.00042,120]
[421976579,1778397882000,-1000000.0,0.00042,120]
[421976581,1778397882000,-1000000.0,0.00042,120]
[421976582,1778397882000,-1000000.0,0.00042,120]
[421976586,1778397882000,-1000000.0,0.00042,120]
[421976585,1778397882000,-1000000.0,0.00042,120]
[421976587,1778397882000,-68381.42585482,0.00042,120]
[421976588,1778397882000,250.0,7.125e-05,2]
[421976589,1778397882000,-182.60906706,0.000105,2]
[421976584,1778397882000,-1000000.0,0.00042,120]
[421976591,1778397883000,-182.60906706,0.000105,2]
[421976590,1778397883000,-182.60906706,0.000105,2]
[421976595,1778397884000,250.0,7.125e-05,2]
[421976596,1778397884000,250.0,6.801e-05,2]
[421976594,1778397884000,-182.60906706,0.000105,2]
[421976593,1778397884000,-182.60906706,0.000105,2]
[421976592,1778397884000,-182.60906706,0.000105,2]
[421976597,1778397885000,-182.60906706,0.000105,2]
[421976600,1778397885000,-32.60906706,0.000105,2]
[421976599,1778397885000,-150.0,0.0001004,2]
[421976598,1778397885000,-182.60906706,0.000105,2]
[421976603,1778397887000,-93.47306116,0.000105,2]
[421976604,1778397887000,-89.1360059,0.000105,2]
[421976602,1778397887000,-182.60906706,0.000105,2]
[421976601,1778397887000,-182.60906706,0.000105,2]
[421976605,1778397888000,-182.60906706,0.000105,2]
[421976609,1778397889000,-182.60906706,0.000105,2]
[421976608,1778397889000,-182.60906706,0.000105,2]
[421976607,1778397889000,-182.60906706,0.000105,2]
[421976606,1778397889000,-182.60906706,0.000105,2]
[421976610,1778397890000,-182.60906706,0.000105,2]
[421976612,1778397890000,-2500.0,0.000105,2]
[421976611,1778397890000,-182.60906706,0.000105,2]
[421976613,1778397954000,-4250.01,0.000105,2]
[421976618,1778398050000,-300.0,0.00010499,2]
[421976620,1778398050000,-1478.17537532,0.000105,2]
[421976619,1778398050000,-2021.83462468,0.000105,2]
[421976617,1778398050000,-1200.0,0.00010499,2]
[421976622,1778398051000,-521.82462468,0.000105,2]
[421976621,1778398051000,-250.0,0.000105,2]
[421976624,1778398053000,-850.849,0.000105,2]
[421976625,1778398053000,-1170.98562468,0.000105,2]
[421976623,1778398053000,-150.0,8.744e-05,2]
[421976635,1778398150000,-550.0,0.00032822,30]
[421976634,1778398150000,-227.0,0.00032822,30]
[421976632,1778398150000,-227.0,0.00031822,30]
[421976631,1778398150000,-258.0,0.00030822,30]
[421976637,1778398150000,-160.17,0.000338,30]
[421976630,1778398150000,-550.0,0.00030822,30]
[421976628,1778398150000,-163.09,0.00027846,30]
[421976627,1778398150000,-163.09,0.00027846,30]
[421976626,1778398150000,-150.54,0.00025114,30]
[421976629,1778398150000,-227.0,0.00030822,30]
[421976636,1778398150000,-176.28,0.000338,30]
[421976633,1778398150000,-550.0,0.00031822,30]
[421976639,1778398150000,-550.0,0.00033822,30]
[421976638,1778398150000,-227.0,0.00033822,30]
[421976649,1778398150000,-240.9855562,0.000395,30]
[421976648,1778398150000,-550.0,0.00036822,30]
[421976644,1778398150000,-160.17,0.000358,30]
[421976645,1778398150000,-227.0,0.00035822,30]
[421976647,1778398150000,-227.0,0.00036822,30]
[421976643,1778398150000,-936.209,0.00035449,42]
[421976650,1778398150000,-500.0,0.00040356,60]
[421976641,1778398150000,-550.0,0.00034822,30]
[421976640,1778398150000,-227.0,0.00034822,30]
[421976642,1778398150000,-188.47409994,0.00035397,30]
[421976646,1778398150000,-550.0,0.00035822,30]
[421976658,1778398151000,-974.0,0.00040822,60]
[421976661,1778398151000,-974.0,0.00040822,60]
[421976663,1778398151000,-974.0,0.00040822,60]
[421976662,1778398151000,-974.0,0.00040822,60]
[421976660,1778398151000,-974.0,0.00040822,60]
[421976659,1778398151000,-974.0,0.00040822,60]
[421976652,1778398151000,-169.85,0.0004075,120]
[421976656,1778398151000,-974.0,0.00040822,60]
[421976655,1778398151000,-974.0,0.00040822,60]
[421976654,1778398151000,-974.0,0.00040822,60]
[421976653,1778398151000,-974.0,0.00040822,60]
[421976651,1778398151000,-800.0,0.00040356,60]
[421976664,1778398151000,-974.0,0.00040822,60]
[421976657,1778398151000,-974.0,0.00040822,60]
[421976666,1778398151000,-974.0,0.00040822,60]
[421976665,1778398151000,-974.0,0.00040822,60]
[421976681,1778398151000,-500.0,0.00040822,60]
[421976682,1778398151000,-500.0,0.00040822,60]
[421976667,1778398151000,-974.0,0.00040822,60]
[421976680,1778398151000,-500.0,0.00040822,60]
[421976679,1778398151000,-974.0,0.00040822,60]
[421976678,1778398151000,-500.0,0.00040822,60]
[421976676,1778398151000,-500.0,0.00040822,60]
[421976675,1778398151000,-500.0,0.00040822,60]
[421976677,1778398151000,-500.0,0.00040822,60]
[421976672,1778398151000,-974.0,0.00040822,60]
[421976673,1778398151000,-500.0,0.00040822,60]
[421976671,1778398151000,-500.0,0.00040822,60]
[421976670,1778398151000,-500.0,0.00040822,60]